[Event "*** Titled Tuesday Blitz"]
[Site "Chess.com"]
[Date "2020.03.03"]
[Round "7"]
[White "MishkaFighter"]
[Black "mrkvoz"]
[Result "0-1"]
[WhiteElo "2518"]
[BlackElo "2742"]
[TimeControl "180+1"]
[EndTime "10:14:57 PST"]
[Termination "mrkvoz won by checkmate"]

1. Nf3 {[%clk 0:03:00.9]} 1... d6 {[%clk 0:03:00.3]} 2. g3 {[%clk 0:03:00.3]}
2... g6 {[%clk 0:03:00.6]} 3. Bg2 {[%clk 0:03:00.8]} 3... Bg7 {[%clk 0:03:01.5]}
4. O-O {[%clk 0:03:01.7]} 4... c5 {[%clk 0:03:01.9]} 5. d4 {[%clk 0:03:00.3]}
5... cxd4 {[%clk 0:02:59.1]} 6. Nxd4 {[%clk 0:03:01.2]} 6... Qb6 {[%clk
0:02:59]} 7. Nb3 {[%clk 0:02:59.4]} 7... Nc6 {[%clk 0:02:58.9]} 8. c4 {[%clk
0:02:59.7]} 8... Be6 {[%clk 0:02:58.1]} 9. Nc3 {[%clk 0:02:53.3]} 9... Bxc4
{[%clk 0:02:57.1]} 10. Nd5 {[%clk 0:02:53.5]} 10... Bxd5 {[%clk 0:02:56.8]} 11.
Bxd5 {[%clk 0:02:52.9]} 11... Nf6 {[%clk 0:02:56.9]} 12. Be3 {[%clk 0:02:51.3]}
12... Qc7 {[%clk 0:02:57]} 13. Rc1 {[%clk 0:02:48.9]} 13... Nxd5 {[%clk
0:02:54.9]} 14. Qxd5 {[%clk 0:02:49.8]} 14... Bxb2 {[%clk 0:02:45.4]} 15. Rc2
{[%clk 0:02:47.9]} 15... Bg7 {[%clk 0:02:45.2]} 16. Nd4 {[%clk 0:02:37.1]} 16...
O-O {[%clk 0:02:35]} 17. Nxc6 {[%clk 0:02:34.8]} 17... bxc6 {[%clk 0:02:35.9]}
18. Rxc6 {[%clk 0:02:35.2]} 18... Qb7 {[%clk 0:02:35.8]} 19. Rfc1 {[%clk
0:02:35.2]} 19... Rac8 {[%clk 0:02:34.3]} 20. a4 {[%clk 0:02:32.1]} 20... h5
{[%clk 0:02:24.1]} 21. a5 {[%clk 0:02:30.2]} 21... Rxc6 {[%clk 0:02:24.1]} 22.
Qxc6 {[%clk 0:02:31.1]} 22... Qb2 {[%clk 0:02:20.9]} 23. Bxa7 {[%clk 0:02:26.6]}
23... Qxe2 {[%clk 0:02:16.9]} 24. a6 {[%clk 0:02:24.6]} 24... Bh6 {[%clk
0:02:16.4]} 25. Rb1 {[%clk 0:02:11]} 25... h4 {[%clk 0:02:07.3]} 26. Bb8 {[%clk
0:02:02.9]} 26... Qa2 {[%clk 0:02:01.7]} 27. Qb7 {[%clk 0:01:55]} 27... h3
{[%clk 0:01:12.6]} 28. a7 {[%clk 0:01:50.9]} 28... d5 {[%clk 0:01:02.1]} 29.
a8=Q {[%clk 0:01:44.7]} 29... Qc2 {[%clk 0:01:00.2]} 30. Rf1 {[%clk 0:01:14.6]}
30... e6 {[%clk 0:00:50.9]} 31. Qb4 {[%clk 0:00:55]} 31... Qe2 {[%clk
0:00:30.2]} 32. Qaa3 {[%clk 0:00:38.1]} 32... Rc8 {[%clk 0:00:18]} 33. Bf4
{[%clk 0:00:24.3]} 33... Bf8 {[%clk 0:00:15.9]} 34. Qe3 {[%clk 0:00:23.6]} 34...
Qxe3 {[%clk 0:00:15.1]} 35. Qxf8+ {[%clk 0:00:22.1]} 35... Rxf8 {[%clk
0:00:15.5]} 36. Bxe3 {[%clk 0:00:23]} 36... Rc8 {[%clk 0:00:16.1]} 37. Rc1
{[%clk 0:00:22.9]} 37... Ra8 {[%clk 0:00:15.7]} 38. Bd4 {[%clk 0:00:21.2]} 38...
Kh7 {[%clk 0:00:12.5]} 39. Kf1 {[%clk 0:00:21.2]} 39... g5 {[%clk 0:00:12.8]}
40. Ke2 {[%clk 0:00:20]} 40... Kg6 {[%clk 0:00:13]} 41. Kf3 {[%clk 0:00:20.2]}
41... Ra3+ {[%clk 0:00:12.8]} 42. Rc3 {[%clk 0:00:18]} 42... Ra4 {[%clk
0:00:12.4]} 43. Bb6 {[%clk 0:00:11.8]} 43... g4+ {[%clk 0:00:11.5]} 44. Ke2
{[%clk 0:00:11.7]} 44... Ra2+ {[%clk 0:00:11.6]} 45. Kd1 {[%clk 0:00:09.8]}
45... Ra1+ {[%clk 0:00:11.5]} 46. Rc1 {[%clk 0:00:10.2]} 46... Ra2 {[%clk
0:00:11.5]} 47. Be3 {[%clk 0:00:11.1]} 47... f6 {[%clk 0:00:11]} 48. Rc2 {[%clk
0:00:10.2]} 48... Ra1+ {[%clk 0:00:11.4]} 49. Rc1 {[%clk 0:00:10.7]} 49... Ra2
{[%clk 0:00:11.5]} 50. Rc6 {[%clk 0:00:10.9]} 50... Kf5 {[%clk 0:00:10.6]} 51.
Rc2 {[%clk 0:00:08.8]} 51... Ra1+ {[%clk 0:00:10.8]} 52. Rc1 {[%clk 0:00:09.7]}
52... Ra2 {[%clk 0:00:11]} 53. Ke1 {[%clk 0:00:10.6]} 53... e5 {[%clk
0:00:10.7]} 54. Rc6 {[%clk 0:00:09.5]} 54... d4 {[%clk 0:00:10.4]} 55. Bd2
{[%clk 0:00:09.9]} 55... Ra1+ {[%clk 0:00:10.5]} 56. Rc1 {[%clk 0:00:09.6]}
56... Ra2 {[%clk 0:00:10.8]} 57. Ke2 {[%clk 0:00:10]} 57... Ke4 {[%clk 0:00:11]}
58. Rc6 {[%clk 0:00:08.8]} 58... f5 {[%clk 0:00:11.1]} 59. Rc5 {[%clk 0:00:04]}
59... Ra1 {[%clk 0:00:11.2]} 60. Rc1 {[%clk 0:00:03.7]} 60... Ra3 {[%clk
0:00:10.8]} 61. Rb1 {[%clk 0:00:03.2]} 61... Ra2 {[%clk 0:00:10.9]} 62. Rc1
{[%clk 0:00:03.1]} 62... Rb2 {[%clk 0:00:10.8]} 63. Rc4 {[%clk 0:00:03.2]} 63...
Rb1 {[%clk 0:00:10.8]} 64. Rc1 {[%clk 0:00:03.1]} 64... Rb3 {[%clk 0:00:10.3]}
65. Rc5 {[%clk 0:00:03.5]} 65... Ra3 {[%clk 0:00:09.5]} 66. Rb5 {[%clk
0:00:03.8]} 66... Ra1 {[%clk 0:00:09.2]} 67. Rb2 {[%clk 0:00:04]} 67... d3#
{[%clk 0:00:09.3]} 0-1

[Event "*** Titled Tuesday Blitz"]
[Site "Chess.com"]
[Date "2020.03.03"]
[Round "7"]
[White "Monmoransy"]
[Black "Azeryahu"]
[Result "0-1"]
[WhiteElo "2591"]
[BlackElo "2842"]
[TimeControl "180+1"]
[EndTime "10:15:04 PST"]
[Termination "Azeryahu won on time"]

1. e4 {[%clk 0:02:56]} 1... e5 {[%clk 0:02:58.9]} 2. Nf3 {[%clk 0:02:54.6]} 2...
Nc6 {[%clk 0:02:59.2]} 3. Bb5 {[%clk 0:02:54.5]} 3... Nf6 {[%clk 0:02:59.1]} 4.
O-O {[%clk 0:02:53.5]} 4... Nxe4 {[%clk 0:02:59.2]} 5. Re1 {[%clk 0:02:52.8]}
5... Nd6 {[%clk 0:02:59.5]} 6. Nxe5 {[%clk 0:02:52.6]} 6... Be7 {[%clk 0:02:59]}
7. Bf1 {[%clk 0:02:51.4]} 7... Nf5 {[%clk 0:02:55.8]} 8. c3 {[%clk 0:02:47.7]}
8... Nxe5 {[%clk 0:02:41.6]} 9. Rxe5 {[%clk 0:02:46.6]} 9... d6 {[%clk
0:02:41.8]} 10. Re1 {[%clk 0:02:45.3]} 10... O-O {[%clk 0:02:41.5]} 11. d4
{[%clk 0:02:45.2]} 11... d5 {[%clk 0:02:40.5]} 12. Nd2 {[%clk 0:02:43.2]} 12...
c6 {[%clk 0:02:29.7]} 13. Nf3 {[%clk 0:02:42.4]} 13... Nh4 {[%clk 0:02:30.3]}
14. Nxh4 {[%clk 0:02:38]} 14... Bxh4 {[%clk 0:02:30.2]} 15. Bf4 {[%clk
0:02:37.3]} 15... Bg5 {[%clk 0:02:26.9]} 16. Qd2 {[%clk 0:02:35.3]} 16... h6
{[%clk 0:02:20.4]} 17. Bd3 {[%clk 0:02:34.3]} 17... Be6 {[%clk 0:01:58]} 18.
Bxg5 {[%clk 0:02:32.4]} 18... Qxg5 {[%clk 0:01:57.9]} 19. Qxg5 {[%clk
0:02:31.3]} 19... hxg5 {[%clk 0:01:58.8]} 20. Re5 {[%clk 0:02:29.2]} 20... g4
{[%clk 0:01:57]} 21. Rae1 {[%clk 0:02:28.5]} 21... Bd7 {[%clk 0:01:52.5]} 22.
Bf5 {[%clk 0:02:24.9]} 22... Bxf5 {[%clk 0:01:48.3]} 23. Rxf5 {[%clk 0:02:24.2]}
23... Rfe8 {[%clk 0:01:48.8]} 24. Kf1 {[%clk 0:02:13.2]} 24... Rxe1+ {[%clk
0:01:48.4]} 25. Kxe1 {[%clk 0:02:13.7]} 25... Re8+ {[%clk 0:01:49.1]} 26. Kd2
{[%clk 0:02:12.7]} 26... g6 {[%clk 0:01:47.5]} 27. Rf4 {[%clk 0:02:00.4]} 27...
f5 {[%clk 0:01:46.5]} 28. f3 {[%clk 0:01:49.5]} 28... gxf3 {[%clk 0:01:46.5]}
29. Rxf3 {[%clk 0:01:49.1]} 29... Kg7 {[%clk 0:01:47.1]} 30. h3 {[%clk
0:01:42.3]} 30... Re4 {[%clk 0:01:44.2]} 31. b4 {[%clk 0:01:38.2]} 31... Kh6
{[%clk 0:01:33.1]} 32. a4 {[%clk 0:01:33]} 32... b6 {[%clk 0:01:28.9]} 33. Rf1
{[%clk 0:01:23.2]} 33... Kg5 {[%clk 0:01:26.3]} 34. b5 {[%clk 0:01:23]} 34... c5
{[%clk 0:01:21.1]} 35. dxc5 {[%clk 0:01:18]} 35... bxc5 {[%clk 0:01:22]} 36. Ra1
{[%clk 0:01:17.1]} 36... Kf4 {[%clk 0:01:18.6]} 37. a5 {[%clk 0:01:17.2]} 37...
Kg3 {[%clk 0:01:18.3]} 38. b6 {[%clk 0:01:15.1]} 38... axb6 {[%clk 0:01:19.2]}
39. axb6 {[%clk 0:01:09.6]} 39... Re8 {[%clk 0:01:16.8]} 40. Ra5 {[%clk
0:01:09.5]} 40... Rb8 {[%clk 0:01:13.9]} 41. Rxc5 {[%clk 0:01:07.7]} 41... Rxb6
{[%clk 0:01:13.9]} 42. Rxd5 {[%clk 0:01:06.6]} 42... Kxg2 {[%clk 0:01:07.5]} 43.
h4 {[%clk 0:01:06.6]} 43... Rf6 {[%clk 0:00:59.2]} 44. c4 {[%clk 0:01:00.2]}
44... Kg3 {[%clk 0:00:50.1]} 45. c5 {[%clk 0:00:52]} 45... Kxh4 {[%clk
0:00:45.1]} 46. Ke3 {[%clk 0:00:48.1]} 46... Kg5 {[%clk 0:00:42.2]} 47. Rd1
{[%clk 0:00:40.7]} 47... Re6+ {[%clk 0:00:40.2]} 48. Kf3 {[%clk 0:00:30.6]}
48... Rc6 {[%clk 0:00:25.9]} 49. Rc1 {[%clk 0:00:28.1]} 49... Kf6 {[%clk
0:00:26.3]} 50. Kf4 {[%clk 0:00:24.7]} 50... g5+ {[%clk 0:00:26.2]} 51. Kf3
{[%clk 0:00:24.9]} 51... Ke5 {[%clk 0:00:26.6]} 52. Re1+ {[%clk 0:00:23.2]}
52... Kd5 {[%clk 0:00:26.6]} 53. Rg1 {[%clk 0:00:23]} 53... Rg6 {[%clk
0:00:27.2]} 54. Rc1 {[%clk 0:00:20.9]} 54... Ra6 {[%clk 0:00:26]} 55. Rg1 {[%clk
0:00:19.2]} 55... Ra3+ {[%clk 0:00:25.9]} 56. Ke2 {[%clk 0:00:19]} 56... g4
{[%clk 0:00:25.4]} 57. Rf1 {[%clk 0:00:15.7]} 57... Ke4 {[%clk 0:00:23]} 58. Rc1
{[%clk 0:00:14.5]} 58... Ra2+ {[%clk 0:00:23.2]} 59. Kf1 {[%clk 0:00:14.5]}
59... Ra7 {[%clk 0:00:22.2]} 60. c6 {[%clk 0:00:14.4]} 60... Rc7 {[%clk
0:00:22.8]} 61. Kf2 {[%clk 0:00:13.8]} 61... Kd5 {[%clk 0:00:19.1]} 62. Kg3
{[%clk 0:00:11.7]} 62... Rxc6 {[%clk 0:00:18.9]} 63. Re1 {[%clk 0:00:10.3]}
63... Re6 {[%clk 0:00:15.2]} 64. Rf1 {[%clk 0:00:08]} 64... Re3+ {[%clk
0:00:13.8]} 65. Kf4 {[%clk 0:00:07.8]} 65... Re5 {[%clk 0:00:08.7]} 66. Rd1+
{[%clk 0:00:07.4]} 66... Ke6 {[%clk 0:00:08.7]} 67. Rd4 {[%clk 0:00:06.5]} 67...
Ra5 {[%clk 0:00:05.4]} 68. Rb4 {[%clk 0:00:06.2]} 68... Ra6 {[%clk 0:00:04.9]}
69. Rc4 {[%clk 0:00:05.7]} 69... Kf6 {[%clk 0:00:04.8]} 70. Rb4 {[%clk
0:00:05.2]} 70... Re6 {[%clk 0:00:05]} 71. Rc4 {[%clk 0:00:03.6]} 71... Re4+
{[%clk 0:00:04.5]} 72. Rxe4 {[%clk 0:00:03.1]} 72... fxe4 {[%clk 0:00:05.4]} 0-1

[Event "*** Titled Tuesday Blitz"]
[Site "Chess.com"]
[Date "2020.03.03"]
[Round "7"]
[White "ShahMatKanal"]
[Black "Abund"]
[Result "0-1"]
[WhiteElo "2501"]
[BlackElo "2701"]
[TimeControl "180+1"]
[EndTime "10:15:18 PST"]
[Termination "Abund won by resignation"]

1. d4 {[%clk 0:03:00.9]} 1... Nf6 {[%clk 0:02:59.5]} 2. c4 {[%clk 0:03:00.4]}
2... g6 {[%clk 0:02:59.8]} 3. Nc3 {[%clk 0:03:00.2]} 3... d5 {[%clk 0:03:00.1]}
4. Nf3 {[%clk 0:02:57.1]} 4... Bg7 {[%clk 0:03:00.1]} 5. Bg5 {[%clk 0:02:57.1]}
5... Ne4 {[%clk 0:02:55]} 6. cxd5 {[%clk 0:02:54.4]} 6... Nxg5 {[%clk
0:02:54.3]} 7. Nxg5 {[%clk 0:02:55.3]} 7... e6 {[%clk 0:02:54.7]} 8. Nf3 {[%clk
0:02:55.4]} 8... exd5 {[%clk 0:02:54.7]} 9. e3 {[%clk 0:02:51]} 9... O-O {[%clk
0:02:54.3]} 10. Be2 {[%clk 0:02:49.1]} 10... c6 {[%clk 0:02:54.1]} 11. O-O
{[%clk 0:02:49.3]} 11... a5 {[%clk 0:02:54.4]} 12. Rb1 {[%clk 0:02:44.3]} 12...
Be6 {[%clk 0:02:52.5]} 13. a3 {[%clk 0:02:43.9]} 13... Nd7 {[%clk 0:02:49.3]}
14. Qc2 {[%clk 0:02:33.2]} 14... Qe7 {[%clk 0:02:44.4]} 15. Rfc1 {[%clk
0:02:32.7]} 15... Bf5 {[%clk 0:02:36.1]} 16. Bd3 {[%clk 0:02:32.3]} 16... Bg4
{[%clk 0:02:35.3]} 17. Nd2 {[%clk 0:02:25.4]} 17... Rfc8 {[%clk 0:02:32.8]} 18.
Be2 {[%clk 0:02:17]} 18... Be6 {[%clk 0:02:22.6]} 19. Na4 {[%clk 0:02:11.6]}
19... b6 {[%clk 0:02:10.2]} 20. Nf1 {[%clk 0:01:58.1]} 20... c5 {[%clk
0:02:08.2]} 21. dxc5 {[%clk 0:01:53.4]} 21... bxc5 {[%clk 0:02:04.1]} 22. Nc3
{[%clk 0:01:45.6]} 22... c4 {[%clk 0:02:01]} 23. Qd2 {[%clk 0:01:35.9]} 23...
Nc5 {[%clk 0:02:00]} 24. Nxd5 {[%clk 0:01:24.2]} 24... Qg5 {[%clk 0:01:36.8]}
25. Nb6 {[%clk 0:01:15.2]} 25... Nb3 {[%clk 0:01:21]} 26. Qe1 {[%clk 0:01:14.5]}
26... Nxc1 {[%clk 0:01:20.1]} 27. Qxc1 {[%clk 0:01:08.6]} 27... Rab8 {[%clk
0:01:04.9]} 28. Nxc8 {[%clk 0:01:08]} 28... Rxc8 {[%clk 0:01:05.8]} 29. Ng3
{[%clk 0:01:04.1]} 29... h5 {[%clk 0:01:03.4]} 30. Bf3 {[%clk 0:01:00.6]} 30...
h4 {[%clk 0:00:57.5]} 31. Ne4 {[%clk 0:01:00]} 31... Qe5 {[%clk 0:00:57.3]} 32.
Nc3 {[%clk 0:00:48.1]} 32... Bf5 {[%clk 0:00:56.2]} 33. e4 {[%clk 0:00:47.6]}
33... Be6 {[%clk 0:00:52.9]} 34. Qe3 {[%clk 0:00:45.8]} 34... Rb8 {[%clk
0:00:48.5]} 35. h3 {[%clk 0:00:38]} 35... Bf6 {[%clk 0:00:47.8]} 36. Be2 {[%clk
0:00:34.5]} 36... Bg5 {[%clk 0:00:44.2]} 37. Qa7 {[%clk 0:00:30.5]} 37... Bd8
{[%clk 0:00:36.8]} 38. Qe3 {[%clk 0:00:24.6]} 38... Bc7 {[%clk 0:00:35.9]} 39.
g3 {[%clk 0:00:21.8]} 39... hxg3 {[%clk 0:00:30.6]} 40. Qxg3 {[%clk 0:00:21.9]}
40... Qxg3+ {[%clk 0:00:27.3]} 41. fxg3 {[%clk 0:00:22.2]} 41... Bxg3 {[%clk
0:00:27.9]} 42. Nd5 {[%clk 0:00:20.8]} 42... Be5 {[%clk 0:00:16.5]} 43. Bxc4
{[%clk 0:00:19.3]} 43... Bxb2 {[%clk 0:00:10.1]} 44. Ne7+ {[%clk 0:00:13.9]}
44... Kf8 {[%clk 0:00:08.9]} 45. Bxe6 {[%clk 0:00:11]} 45... Bd4+ {[%clk
0:00:07]} 46. Kg2 {[%clk 0:00:11.5]} 46... Rxb1 {[%clk 0:00:07.5]} 47. Nc6
{[%clk 0:00:10.4]} 47... Bc3 {[%clk 0:00:06.6]} 48. Bd5 {[%clk 0:00:08.7]} 48...
Ra1 {[%clk 0:00:06.2]} 49. Na7 {[%clk 0:00:05.4]} 49... Rxa3 {[%clk 0:00:06]}
50. Nb5 {[%clk 0:00:05.8]} 50... Bb4 {[%clk 0:00:04.4]} 51. Nxa3 {[%clk
0:00:05.7]} 51... Bxa3 {[%clk 0:00:05.3]} 52. Bc6 {[%clk 0:00:05.7]} 52... Bd6
{[%clk 0:00:05.1]} 53. Kf3 {[%clk 0:00:05.7]} 53... Ke7 {[%clk 0:00:05.4]} 54.
Ke3 {[%clk 0:00:05.6]} 54... Ke6 {[%clk 0:00:05.7]} 55. Be8 {[%clk 0:00:04.8]}
55... g5 {[%clk 0:00:05.2]} 56. Ba4 {[%clk 0:00:04.2]} 56... f6 {[%clk
0:00:05.3]} 57. Bb3+ {[%clk 0:00:03.8]} 57... Ke5 {[%clk 0:00:05.6]} 58. Ba4
{[%clk 0:00:03.8]} 58... Bc5+ {[%clk 0:00:05.9]} 59. Kf3 {[%clk 0:00:03.5]}
59... Kd4 {[%clk 0:00:06.1]} 60. Bc6 {[%clk 0:00:03.8]} 60... Bd6 {[%clk
0:00:06.2]} 61. Kg4 {[%clk 0:00:03.9]} 61... Kc3 {[%clk 0:00:05.8]} 62. Kf5
{[%clk 0:00:04.1]} 62... Be5 {[%clk 0:00:05.9]} 63. Kg4 {[%clk 0:00:03.8]} 63...
Kb3 {[%clk 0:00:05.9]} 64. h4 {[%clk 0:00:03.5]} 64... gxh4 {[%clk 0:00:05.7]}
65. Kxh4 {[%clk 0:00:04.4]} 65... a4 {[%clk 0:00:06]} 66. Kg4 {[%clk 0:00:04.2]}
66... a3 {[%clk 0:00:06.3]} 67. Bd5+ {[%clk 0:00:05.1]} 67... Kb2 {[%clk
0:00:06.6]} 68. Kf5 {[%clk 0:00:05.4]} 68... Kb1 {[%clk 0:00:06.7]} 69. Ke6
{[%clk 0:00:03.2]} 69... a2 {[%clk 0:00:07]} 70. Bxa2+ {[%clk 0:00:03.5]} 70...
Kxa2 {[%clk 0:00:07.9]} 71. Kf5 {[%clk 0:00:04]} 71... Kb3 {[%clk 0:00:08.8]}
72. Kg4 {[%clk 0:00:04.3]} 72... Kb2 {[%clk 0:00:09.7]} 73. Kf3 {[%clk
0:00:04.3]} 73... Kc3 {[%clk 0:00:10.6]} 74. Ke3 {[%clk 0:00:04.8]} 74... Kc4
{[%clk 0:00:11.5]} 75. Kf3 {[%clk 0:00:05.1]} 75... Kc5 {[%clk 0:00:12.4]} 76.
Kg4 {[%clk 0:00:05.5]} 76... Kd4 {[%clk 0:00:13.3]} 77. Kf5 {[%clk 0:00:06]}
77... Ke3 {[%clk 0:00:13.9]} 78. Kg4 {[%clk 0:00:06]} 78... Kxe4 {[%clk
0:00:14.8]} 79. Kh3 {[%clk 0:00:06.5]} 79... f5 {[%clk 0:00:15.7]} 80. Kg2
{[%clk 0:00:07.3]} 80... f4 {[%clk 0:00:16.6]} 81. Kf1 {[%clk 0:00:08.2]} 81...
f3 {[%clk 0:00:17.5]} 82. Kf2 {[%clk 0:00:08.7]} 82... Bd4+ {[%clk 0:00:18.4]}
83. Kf1 {[%clk 0:00:09.6]} 83... Ke3 {[%clk 0:00:18.5]} 84. Kg1 {[%clk
0:00:09.5]} 84... Ke2+ {[%clk 0:00:18.2]} 85. Kh1 {[%clk 0:00:09.1]} 85... f2
{[%clk 0:00:18.4]} 86. Kh2 {[%clk 0:00:09.2]} 86... Be5+ {[%clk 0:00:18]} 87.
Kh3 {[%clk 0:00:08.6]} 87... f1=Q+ {[%clk 0:00:18.9]} 88. Kg4 {[%clk 0:00:08.8]}
88... Qf4+ {[%clk 0:00:18.9]} 89. Kh5 {[%clk 0:00:08.5]} 89... Qg3 {[%clk
0:00:18.7]} 0-1

[Event "*** Titled Tuesday Blitz"]
[Site "Chess.com"]
[Date "2020.03.03"]
[Round "7"]
[White "obliviate12"]
[Black "pouya21"]
[Result "0-1"]
[WhiteElo "2852"]
[BlackElo "2771"]
[TimeControl "180+1"]
[EndTime "10:16:07 PST"]
[Termination "pouya21 won by checkmate"]

1. e4 {[%clk 0:02:59.3]} 1... c5 {[%clk 0:02:59.6]} 2. Nf3 {[%clk 0:02:58.7]}
2... d6 {[%clk 0:03:00]} 3. d4 {[%clk 0:02:59]} 3... cxd4 {[%clk 0:03:00.1]} 4.
Qxd4 {[%clk 0:02:58.1]} 4... Nf6 {[%clk 0:02:59.7]} 5. Be2 {[%clk 0:02:56.8]}
5... Nc6 {[%clk 0:02:58.9]} 6. Qe3 {[%clk 0:02:57.1]} 6... g6 {[%clk 0:02:58.8]}
7. h3 {[%clk 0:02:57.4]} 7... Bg7 {[%clk 0:02:58.8]} 8. O-O {[%clk 0:02:57.7]}
8... O-O {[%clk 0:02:58.7]} 9. Rd1 {[%clk 0:02:57.8]} 9... Be6 {[%clk
0:02:58.2]} 10. Nc3 {[%clk 0:02:57.2]} 10... Rc8 {[%clk 0:02:29.4]} 11. a3
{[%clk 0:02:55.3]} 11... Qc7 {[%clk 0:02:22]} 12. Rb1 {[%clk 0:02:37.7]} 12...
a6 {[%clk 0:02:21]} 13. Qf4 {[%clk 0:02:10.9]} 13... Ne5 {[%clk 0:02:08.1]} 14.
Nxe5 {[%clk 0:01:41.5]} 14... dxe5 {[%clk 0:02:07.6]} 15. Qg3 {[%clk 0:01:41.4]}
15... Nd7 {[%clk 0:01:56.3]} 16. Be3 {[%clk 0:01:35.9]} 16... Nb8 {[%clk
0:01:44.4]} 17. Bg4 {[%clk 0:01:23.1]} 17... f5 {[%clk 0:01:16.1]} 18. exf5
{[%clk 0:01:01.4]} 18... gxf5 {[%clk 0:01:15.1]} 19. Bxf5 {[%clk 0:00:48.6]}
19... Bxf5 {[%clk 0:00:58.1]} 20. Nd5 {[%clk 0:00:46.7]} 20... Qd6 {[%clk
0:00:58.1]} 21. Bg5 {[%clk 0:00:40.2]} 21... Qe6 {[%clk 0:00:53.6]} 22. Nxe7+
{[%clk 0:00:34.4]} 22... Kh8 {[%clk 0:00:52.8]} 23. Nxc8 {[%clk 0:00:34.3]}
23... Rxc8 {[%clk 0:00:53.7]} 24. Rd2 {[%clk 0:00:29.4]} 24... Nc6 {[%clk
0:00:53.1]} 25. Re1 {[%clk 0:00:28.9]} 25... Rg8 {[%clk 0:00:52.6]} 26. Qh4
{[%clk 0:00:24.7]} 26... h6 {[%clk 0:00:50.5]} 27. c4 {[%clk 0:00:23.2]} 27...
Qg6 {[%clk 0:00:48.5]} 28. Be3 {[%clk 0:00:21.8]} 28... Kh7 {[%clk 0:00:43.1]}
29. g4 {[%clk 0:00:15.8]} 29... Be4 {[%clk 0:00:39]} 30. c5 {[%clk 0:00:15]}
30... Bf6 {[%clk 0:00:33.5]} 31. Rd7+ {[%clk 0:00:14.1]} 31... Rg7 {[%clk
0:00:31.6]} 32. Rxg7+ {[%clk 0:00:13.7]} 32... Kxg7 {[%clk 0:00:31.3]} 33. Qxh6+
{[%clk 0:00:12.6]} 33... Kf7 {[%clk 0:00:28.7]} 34. Qxg6+ {[%clk 0:00:10.7]}
34... Bxg6 {[%clk 0:00:27.5]} 35. f3 {[%clk 0:00:10]} 35... e4 {[%clk 0:00:27]}
36. b4 {[%clk 0:00:09.3]} 36... exf3 {[%clk 0:00:26.1]} 37. g5 {[%clk
0:00:09.5]} 37... Bc3 {[%clk 0:00:24.3]} 38. Rd1 {[%clk 0:00:09.6]} 38... Ne5
{[%clk 0:00:23.4]} 39. Kf2 {[%clk 0:00:09.6]} 39... Be4 {[%clk 0:00:22.4]} 40.
Kg3 {[%clk 0:00:07.6]} 40... Nd3 {[%clk 0:00:21.9]} 41. h4 {[%clk 0:00:07.8]}
41... Be1+ {[%clk 0:00:21]} 42. Kg4 {[%clk 0:00:05.4]} 42... f2 {[%clk
0:00:20.9]} 43. Bxf2 {[%clk 0:00:05.7]} 43... Nxf2+ {[%clk 0:00:21.1]} 44. Kf4
{[%clk 0:00:06.6]} 44... Nxd1 {[%clk 0:00:20.3]} 45. Kxe4 {[%clk 0:00:07.5]}
45... Bxh4 {[%clk 0:00:19.9]} 46. Kd5 {[%clk 0:00:06.4]} 46... Nc3+ {[%clk
0:00:19.9]} 47. Kd6 {[%clk 0:00:06.3]} 47... Nb5+ {[%clk 0:00:19.7]} 48. Kd7
{[%clk 0:00:06.2]} 48... Nxa3 {[%clk 0:00:19.5]} 49. Kc7 {[%clk 0:00:06]} 49...
Nc2 {[%clk 0:00:19.6]} 50. Kxb7 {[%clk 0:00:01.7]} 50... Nxb4 {[%clk 0:00:19]}
51. c6 {[%clk 0:00:02.6]} 51... Bg3 {[%clk 0:00:17.7]} 52. Kb6 {[%clk
0:00:02.8]} 52... Kg6 {[%clk 0:00:17.9]} 53. Ka5 {[%clk 0:00:02.5]} 53... Bd6
{[%clk 0:00:16.8]} 54. c7 {[%clk 0:00:02.7]} 54... Bxc7+ {[%clk 0:00:16]} 55.
Kxb4 {[%clk 0:00:02.7]} 55... Kxg5 {[%clk 0:00:16.3]} 56. Kc5 {[%clk 0:00:03.6]}
56... a5 {[%clk 0:00:16.6]} 57. Kc6 {[%clk 0:00:04.5]} 57... Kf5 {[%clk
0:00:17]} 58. Kb5 {[%clk 0:00:05.4]} 58... Ke5 {[%clk 0:00:16.4]} 59. Ka4 {[%clk
0:00:06.3]} 59... Kd5 {[%clk 0:00:16.4]} 60. Kb3 {[%clk 0:00:07.2]} 60... Kc5
{[%clk 0:00:16.5]} 61. Ka4 {[%clk 0:00:08.1]} 61... Kb6 {[%clk 0:00:15.8]} 62.
Ka3 {[%clk 0:00:09]} 62... Kb5 {[%clk 0:00:14.9]} 63. Kb3 {[%clk 0:00:09.9]}
63... a4+ {[%clk 0:00:15.8]} 64. Ka2 {[%clk 0:00:10.8]} 64... Bb6 {[%clk
0:00:16.7]} 65. Kb2 {[%clk 0:00:11.7]} 65... Bc5 {[%clk 0:00:17.6]} 66. Ka2
{[%clk 0:00:12.6]} 66... Kb4 {[%clk 0:00:18.5]} 67. Kb2 {[%clk 0:00:13.5]} 67...
a3+ {[%clk 0:00:17.4]} 68. Ka2 {[%clk 0:00:14.4]} 68... Ka4 {[%clk 0:00:17.4]}
69. Kb1 {[%clk 0:00:15.3]} 69... Kb3 {[%clk 0:00:17.1]} 70. Kc1 {[%clk
0:00:16.2]} 70... a2 {[%clk 0:00:16.1]} 71. Kd2 {[%clk 0:00:17.1]} 71... a1=Q
{[%clk 0:00:15.8]} 72. Kd3 {[%clk 0:00:18]} 72... Qd4+ {[%clk 0:00:15.5]} 73.
Ke2 {[%clk 0:00:18.9]} 73... Qe3+ {[%clk 0:00:15.4]} 74. Kd1 {[%clk 0:00:19.8]}
74... Qf2 {[%clk 0:00:15.5]} 75. Kc1 {[%clk 0:00:19.5]} 75... Qc2# {[%clk
0:00:16.4]} 0-1